{"text_format":"1","workbook":"xlsx","n_sheets":6,"sheets":["TENDER PACK 3 PS (Sheet A)","DC3A","TENDER PACK 3 PS (Sheet B)","TENDER PACK 3 CONTRACT RESPONSE","DC3B","DC3C"],"not_rendered":{"charts":0,"images":4,"macros":1,"external_links":0,"defined_names":0,"comments":3,"pivot_tables":0},"unopened":[],"bounds":{"document_bytes":16777216,"sheet_cells":100000,"rows_first":2000,"rows_last":500,"rows_between":2000,"halvings":0,"cell_chars":16384,"cell_head_chars":4096},"cells_cut":0,"cells_raw":0,"read":"whole","date_system":"1900"}

{"sheet":"TENDER PACK 3 PS (Sheet A)","index":0,"n_rows":241,"n_cols":17,"rows_kept":241,"cut":false,"hidden":false,"merged":[[192,2,193,2],[192,3,192,14],[194,2,195,2],[194,3,195,6],[194,7,195,12],[194,13,195,14],[127,3,128,6],[127,7,128,14],[129,3,133,6],[129,7,133,14],[140,7,142,14],[136,3,137,6],[136,7,137,14],[138,3,139,6],[134,7,135,14],[134,3,135,6],[138,7,139,14],[143,7,145,14],[165,3,166,14],[168,3,168,14],[143,2,145,2],[140,3,142,6],[136,2,137,2],[138,2,139,2],[87,2,88,2],[89,2,90,2],[99,2,100,2],[8,3,11,9],[8,10,11,10],[8,11,11,14],[134,2,135,2],[127,2,128,2],[129,2,133,2],[96,3,96,6],[96,7,96,14],[97,3,97,6],[97,7,97,14],[87,3,88,6],[87,7,88,14],[89,3,90,6],[89,7,90,14],[91,3,94,6],[91,7,94,14],[102,3,102,6],[102,7,102,14],[104,3,104,14],[106,3,107,14],[122,3,123,14],[140,2,142,2],[82,3,83,14],[143,3,145,6],[177,2,178,2],[177,3,178,6],[183,3,184,6],[2,3,6,14],[3,16,5,17],[13,3,14,14],[16,3,22,14],[17,16,20,17],[43,3,47,14],[43,16,45,17],[49,3,61,14],[53,16,55,17],[85,3,85,14],[23,16,24,17],[24,3,24,14],[25,3,25,14],[27,3,38,14],[27,16,29,17],[42,3,42,14],[95,3,95,6],[95,7,95,14],[125,3,125,14],[98,3,98,6],[98,7,98,14],[99,3,100,6],[99,7,100,14],[101,3,101,6],[101,7,101,14],[177,7,178,12],[177,13,178,14],[179,3,182,6],[179,7,182,12],[179,13,182,14],[170,16,172,17],[173,2,174,2],[173,3,174,6],[173,7,174,12],[173,13,174,14],[175,2,176,2],[175,3,176,6],[175,7,176,12],[175,13,176,14],[170,2,172,2],[179,2,182,2],[170,13,172,14],[170,3,172,6],[170,7,172,12],[183,7,184,14],[185,2,186,2],[185,3,186,6],[185,7,186,14],[187,2,188,2],[187,3,188,6],[187,7,188,12],[187,13,188,14],[189,3,190,6],[189,7,190,12],[189,13,190,14],[189,2,190,2],[183,2,184,2],[205,3,206,14],[208,3,208,14],[196,2,197,2],[196,3,197,6],[196,7,197,12],[196,13,197,14],[198,2,199,2],[198,3,199,6],[198,7,199,12],[198,13,199,14],[200,2,201,2],[200,3,201,6],[200,7,201,12],[200,13,201,14],[210,2,212,2],[213,2,215,2],[216,2,218,2],[219,2,221,2],[222,3,227,6],[222,7,227,14],[225,16,227,17],[216,3,218,6],[216,7,218,12],[216,13,218,14],[219,3,221,6],[219,7,221,12],[219,13,221,14],[210,3,212,6],[210,7,212,12],[210,13,212,14],[213,3,215,6],[213,7,215,12],[213,13,215,14],[222,2,227,2]]}
[]
[]
[null,null,null,"TENDER PACK 3\nOPERATING MARGINS\n2022/23 SUPPLEMENTARY TENDER GAS DELIVERY TENDER (DEMAND REDUCTION)\nSHEET A - MANDATORY BID (01/12/22 - 30/04/23)"]
[]
[]
[]
[]
[]
[null,null,null,"This tender pack is designed for:\n• Facility Providers of Demand Reduction Services\n",null,null,null,null,null,null,null,"Submission of this sheet is mandatory for Power Station Tenderers"]
[]
[]
[]
[]
[null,null,null,"Issued 13 September 2022"]
[]
[]
[null,null,null,"Produced by National Grid Gas Transmission  \nNational Grid Gas plc\nNational Grid House\nWarwick Technology Park\nGallows Hill\nWarwick\nCV34 6DA"]
[]
[]
[]
[]
[]
[]
[]
[null,null,null,"Website:"]
[null,null,null,"https://www.nationalgrid.com/uk/gas-transmission/balancing/operating-margins-om"]
[]
[null,null,null,"PLEASE NOTE:\nThis document should be read in conjunction with the template Operating Margins agreements (found on the Operating Margins Homepage) and the document entitled \"Tender Guidance Document 2022/23 (Supplementary Tender)\".\n\nSpecific guidance on how to complete these tender sheets is provided in Sections 7 & 8 of the Operating Margins Tender Guidance Document with specific cross-references to these tender sheets via superscript numbers adjacent to the relevant fields of information. Please also refer to Section 6 \"Requirements of the Tender Process\" in order to understand what must accompany the tender sheets as part of submission in order that assessment can proceed on any tenders received.\n\nTerms and phrases used in this document have the meanings set out or referred to in the template Operating Margins agreements and/or the Operating Margins Tender Guidance Document."]
[]
[]
[]
[]
[]
[]
[]
[]
[]
[]
[]
[null,null,null,null,null,null,null,null,null,null,null,null,null,null,null,null,"Page 1"]
[]
[]
[null,null,null,"IMPORTANT INFORMATION - PLEASE READ:"]
[null,null,null,"• All parts of 'Sheet A' must be completed by all Power Station tenderers and submitted to be eligible for assessment.\n\n• A Power Station tenderer may submit an additional proposal for a 5 month OM service in the form of 'Sheet B', with a different Maximum Delivery Rate (for example a MEL to SEL turndown). This is optional. \n\n\n**Volumes in Sheets A and B will be treated as mutually exclusive - i.e. National Grid will only consider accepting ONE of Sheet A or Sheet B.**"]
[]
[]
[]
[]
[]
[null,null,null,"Completed Tenders should be submitted by 13:00 hours (BST) on Monday 3rd October 2022 via Ariba.\n\nThe completed Tender Pack should be uploaded with a filename which includes the company name and site.\nAfter uploading the Tender Pack document, terms and conditions must be accepted before submitting.\nSubmissions can be revised until the deadline."]
[]
[]
[]
[]
[]
[]
[]
[]
[]
[]
[]
[]
[]
[]
[]
[]
[]
[]
[]
[]
[]
[]
[]
[]
[]
[]
[]
[]
[]
[null,null,null,null,null,null,null,null,null,null,null,null,null,null,null,null,"Page 2"]
[]
[]
[null,null,null,"2022/23 OM GAS DELIVERY TENDER (WINTER SUPPLEMENTARY TENDER)"]
[]
[]
[null,null,null,"Part 1: Tenderer Details"]
[]
[null,null,1,"Tenderer's Company Name\n(including company number)"]
[]
[null,null,2,"Company Representative, Job Title"]
[]
[null,null,3,"Company Representative Address\n(full address including postcode)"]
[]
[]
[]
[null,null,4,"Telephone Number"]
[null,null,5,"Facsimile Number"]
[null,null,6,"Email Address"]
[null,null,7,"Legal Agent Name"]
[null,null,8,"Legal Agent Address"]
[]
[null,null,9,"Shipper Short Code"]
[null,null,10,"Achilles Registration Number"]
[]
[null,null,null,"Part 2"]
[]
[null,null,null,"PLEASE SEE TENDER PACK 3 CONTRACT RESPONSE TAB"]
[]
[]
[]
[]
[]
[]
[]
[]
[]
[]
[]
[]
[null,null,null,null,null,null,null,null,null,null,null,null,null,null,null,null,"Page 3"]
[]
[]
[null,null,null,"2022/23 OM GAS DELIVERY TENDER (WINTER SUPPLEMENTARY TENDER)"]
[]
[]
[null,null,null,"Part 3: Facility Details"]
[]
[null,null,11,"Facility Name\n(including company number)"]
[]
[null,null,12,"Facility Location\n(full address including postcode)\n"]
[]
[]
[]
[]
[null,null,13,"Facility Stable Export Limit"]
[]
[null,null,14,"Facility Maximum Export Limit"]
[]
[null,null,15,"BM Unit IDs"]
[]
[null,null,16,"Duration of Service",null,null,null,"5 Months (01/12/2022 - 30/04/2023)",null,null,null,null,null,null,null,null,1]
[]
[]
[null,null,17,"[NOT USED]",null,null,null,"[NOT USED]"]
[]
[]
[]
[]
[]
[]
[]
[]
[]
[]
[]
[]
[]
[]
[]
[]
[]
[]
[null,null,null,null,null,null,null,null,null,null,null,null,null,null,null,null,"Page 4"]
[]
[]
[null,null,null,"2022/23 OM GAS DELIVERY TENDER (WINTER SUPPLEMENTARY TENDER)"]
[]
[]
[null,null,null,"Part 4: Deliverability & Availability"]
[]
[null,null,18,"Maximum Delivery Rate (Tendered)\n(requirement must be greater or equal to 500,000 kWh/hour)",null,null,null,null,null,null,null,null,null,"kWh/hour"]
[]
[]
[null,null,19,"[NOT USED]",null,null,null,"[NOT USED]",null,null,null,null,null,"[NOT USED]"]
[]
[null,null,20,"Minimum Delivery Rate\n(optional) (if left blank delivery deemed at 0)",null,null,null,null,null,null,null,null,null,"kWh/hour"]
[]
[null,null,21,"Response Time",null,null,null,null,null,null,null,null,null,"Minutes"]
[]
[null,null,22,"Planned Maintenance Periods",null,null,null,null,null,null,null,null,null,"Dates"]
[]
[]
[]
[null,null,23,"Website for Service Availability / Unavailability"]
[]
[null,null,24,"[NOT USED]",null,null,null,"[NOT USED]"]
[]
[null,null,25,"Maximum Delivery Duration",null,null,null,null,null,null,null,null,null,"hours",null,null,2]
[]
[null,null,26,"Minimum Delivery Duration\n(Optional) (if left blank delivery deemed at 0)",null,null,null,null,null,null,null,null,null,"hours"]
[]
[]
[]
[]
[null,null,27,"[NOT USED]",null,null,null,"[NOT USED]",null,null,null,null,null,"[NOT USED]"]
[]
[null,null,28,"[NOT USED]",null,null,null,"[NOT USED]",null,null,null,null,null,"[NOT USED]"]
[]
[null,null,29,"[NOT USED]",null,null,null,"[NOT USED]",null,null,null,null,null,"[NOT USED]"]
[]
[null,null,30,"[NOT USED]",null,null,null,"[NOT USED]",null,null,null,null,null,"[NOT USED]"]
[]
[null,null,null,null,null,null,null,null,null,null,null,null,null,null,null,null,"Page 5"]
[]
[]
[null,null,null,"2022/23 OM GAS DELIVERY TENDER (WINTER SUPPLEMENTARY TENDER)"]
[]
[]
[null,null,null,"Part 5: Charges"]
[]
[null,null,31,"Service Fee (for period 01/12/2022 - 30/04/2023)",null,null,null,null,null,null,null,null,null,"£"]
[]
[]
[null,null,32,"Indexed Delivery Charge\n",null,null,null,"Indexed Delivery Charge 2 ",null,null,null,null,null,"See Guidance Document"]
[]
[]
[null,null,33,"Efficiency Loss Factor ('X'%)",null,null,null,null,null,null,null,null,null,"See Guidance Document"]
[]
[]
[null,null,34,"Indexed Delivery Charge 3 required? (YES/NO)\n",null,null,null,null,null,null,null,null,null,"See Guidance Document"]
[]
[]
[null,null,35,"Additional Nomination Restrictions"]
[]
[]
[]
[]
[]
[]
[]
[]
[]
[]
[]
[]
[]
[]
[]
[]
[]
[null,null,null,null,null,null,null,null,null,null,null,null,null,null,null,null,"Page 6"]

{"sheet":"DC3A","index":1,"n_rows":4,"n_cols":41,"rows_kept":4,"cut":false,"hidden":true,"merged":[[0,2,1,9]]}
[null,null,"Data Collection Tab for Contracts Team"]
[]
["Tender Pack","Tender Ref","Tranche Ref","Main Ref",{"$f":"'TENDER PACK 3 PS (Sheet A)'!$D$88","v":"Tenderer's Company Name\n(including company number)"},{"$f":"'TENDER PACK 3 PS (Sheet A)'!$D$90","v":"Company Representative, Job Title"},{"$f":"'TENDER PACK 3 PS (Sheet A)'!$D$92","v":"Company Representative Address\n(full address including postcode)"},{"$f":"'TENDER PACK 3 PS (Sheet A)'!$D$96","v":"Telephone Number"},{"$f":"'TENDER PACK 3 PS (Sheet A)'!$D$97","v":"Facsimile Number"},{"$f":"'TENDER PACK 3 PS (Sheet A)'!$D$98","v":"Email Address"},{"$f":"'TENDER PACK 3 PS (Sheet A)'!$D$99","v":"Legal Agent Name"},{"$f":"'TENDER PACK 3 PS (Sheet A)'!$D$100","v":"Legal Agent Address"},{"$f":"'TENDER PACK 3 PS (Sheet A)'!$D$102","v":"Shipper Short Code"},{"$f":"'TENDER PACK 3 PS (Sheet A)'!$D$103","v":"Achilles Registration Number"},"Winter Only?",{"$f":"'TENDER PACK 3 PS (Sheet A)'!$D$128","v":"Facility Name\n(including company number)"},{"$f":"'TENDER PACK 3 PS (Sheet A)'!$D$130","v":"Facility Location\n(full address including postcode)\n"},{"$f":"'TENDER PACK 3 PS (Sheet A)'!$D$135","v":"Facility Stable Export Limit"},{"$f":"'TENDER PACK 3 PS (Sheet A)'!$D$137","v":"Facility Maximum Export Limit"},{"$f":"'TENDER PACK 3 PS (Sheet A)'!$D$139","v":"BM Unit IDs"},{"$f":"'TENDER PACK 3 PS (Sheet A)'!$D$141","v":"Duration of Service"},{"$f":"'TENDER PACK 3 PS (Sheet A)'!$D$144","v":"[NOT USED]"},{"$f":"'TENDER PACK 3 PS (Sheet A)'!$D$171","v":"Maximum Delivery Rate (Tendered)\n(requirement must be greater or equal to 500,000 kWh/hour)"},{"$f":"'TENDER PACK 3 PS (Sheet A)'!$D$174","v":"[NOT USED]"},{"$f":"'TENDER PACK 3 PS (Sheet A)'!$D$176","v":"Minimum Delivery Rate\n(optional) (if left blank delivery deemed at 0)"},{"$f":"'TENDER PACK 3 PS (Sheet A)'!$D$178","v":"Response Time"},{"$f":"'TENDER PACK 3 PS (Sheet A)'!$D$180","v":"Planned Maintenance Periods"},{"$f":"'TENDER PACK 3 PS (Sheet A)'!$D$184","v":"Website for Service Availability / Unavailability"},{"$f":"'TENDER PACK 3 PS (Sheet A)'!$D$186","v":"[NOT USED]"},{"$f":"'TENDER PACK 3 PS (Sheet A)'!$D$188","v":"Maximum Delivery Duration"},{"$f":"'TENDER PACK 3 PS (Sheet A)'!$D$190","v":"Minimum Delivery Duration\n(Optional) (if left blank delivery deemed at 0)"},{"$f":"'TENDER PACK 3 PS (Sheet A)'!$D$195","v":"[NOT USED]"},{"$f":"'TENDER PACK 3 PS (Sheet A)'!$D$197","v":"[NOT USED]"},{"$f":"'TENDER PACK 3 PS (Sheet A)'!$D$199","v":"[NOT USED]"},{"$f":"'TENDER PACK 3 PS (Sheet A)'!$D$201","v":"[NOT USED]"},{"$f":"'TENDER PACK 3 PS (Sheet A)'!$D$211","v":"Service Fee (for period 01/12/2022 - 30/04/2023)"},{"$f":"'TENDER PACK 3 PS (Sheet A)'!$D$214","v":"Indexed Delivery Charge\n"},{"$f":"'TENDER PACK 3 PS (Sheet A)'!$D$217","v":"Efficiency Loss Factor ('X'%)"},{"$f":"'TENDER PACK 3 PS (Sheet A)'!$D$220","v":"Indexed Delivery Charge 3 required? (YES/NO)\n"},{"$f":"'TENDER PACK 3 PS (Sheet A)'!$D$223","v":"Additional Nomination Restrictions"},{"$f":"'TENDER PACK 3 PS (Sheet A)'!#REF!","v":{"$error":"#REF!"}}]
[null,null,null,{"$f":"A4&\".\"&B4&\".\"&C4","v":".."},{"$f":"'TENDER PACK 3 PS (Sheet A)'!$H$88","v":0},{"$f":"'TENDER PACK 3 PS (Sheet A)'!$H$90","v":0},{"$f":"'TENDER PACK 3 PS (Sheet A)'!$H$92","v":0},{"$f":"'TENDER PACK 3 PS (Sheet A)'!$H$96","v":0},{"$f":"'TENDER PACK 3 PS (Sheet A)'!$H$97","v":0},{"$f":"'TENDER PACK 3 PS (Sheet A)'!$H$98","v":0},{"$f":"'TENDER PACK 3 PS (Sheet A)'!$H$99","v":0},{"$f":"'TENDER PACK 3 PS (Sheet A)'!$H$100","v":0},{"$f":"'TENDER PACK 3 PS (Sheet A)'!$H$102","v":0},{"$f":"'TENDER PACK 3 PS (Sheet A)'!$H$103","v":0},"No",{"$f":"'TENDER PACK 3 PS (Sheet A)'!$H$128","v":0},{"$f":"'TENDER PACK 3 PS (Sheet A)'!$H$130","v":0},{"$f":"'TENDER PACK 3 PS (Sheet A)'!$H$135","v":0},{"$f":"'TENDER PACK 3 PS (Sheet A)'!$H$137","v":0},{"$f":"'TENDER PACK 3 PS (Sheet A)'!$H$139","v":0},{"$f":"'TENDER PACK 3 PS (Sheet A)'!$H$141","v":"5 Months (01/12/2022 - 30/04/2023)"},{"$f":"'TENDER PACK 3 PS (Sheet A)'!$H$144","v":"[NOT USED]"},{"$f":"'TENDER PACK 3 PS (Sheet A)'!$H$171","v":0},{"$f":"'TENDER PACK 3 PS (Sheet A)'!$H$174","v":"[NOT USED]"},{"$f":"'TENDER PACK 3 PS (Sheet A)'!$H$176","v":0},{"$f":"'TENDER PACK 3 PS (Sheet A)'!$H$178","v":0},{"$f":"'TENDER PACK 3 PS (Sheet A)'!$H$180","v":0},{"$f":"'TENDER PACK 3 PS (Sheet A)'!$H$184","v":0},{"$f":"'TENDER PACK 3 PS (Sheet A)'!$H$186","v":"[NOT USED]"},{"$f":"IF('TENDER PACK 3 PS (Sheet A)'!Q188=1,\"12\",IF('TENDER PACK 3 PS (Sheet A)'!Q188=2,\"24\",\"UNCHECKED\"))","v":"24"},{"$f":"'TENDER PACK 3 PS (Sheet A)'!$H$190","v":0},{"$f":"'TENDER PACK 3 PS (Sheet A)'!$H$195","v":"[NOT USED]"},{"$f":"'TENDER PACK 3 PS (Sheet A)'!$H$197","v":"[NOT USED]"},{"$f":"'TENDER PACK 3 PS (Sheet A)'!$H$199","v":"[NOT USED]"},{"$f":"'TENDER PACK 3 PS (Sheet A)'!$H$201","v":"[NOT USED]"},{"$f":"'TENDER PACK 3 PS (Sheet A)'!$H$211","v":0},{"$f":"'TENDER PACK 3 PS (Sheet A)'!$H$214","v":"Indexed Delivery Charge 2 "},{"$f":"'TENDER PACK 3 PS (Sheet A)'!$H$217","v":0},{"$f":"'TENDER PACK 3 PS (Sheet A)'!$H$220","v":0},{"$f":"'TENDER PACK 3 PS (Sheet A)'!$H$223","v":0},{"$f":"IF('TENDER PACK 3 PS (Sheet A)'!#REF!=\"\",\"N\",\"Y\")","v":{"$error":"#REF!"}}]

{"sheet":"TENDER PACK 3 PS (Sheet B)","index":2,"n_rows":241,"n_cols":17,"rows_kept":241,"cut":false,"hidden":false,"merged":[[222,2,227,2],[222,3,227,6],[222,7,227,14],[225,16,227,17],[216,2,218,2],[216,3,218,6],[216,7,218,12],[216,13,218,14],[219,2,221,2],[219,3,221,6],[219,7,221,12],[219,13,221,14],[210,2,212,2],[210,3,212,6],[210,7,212,12],[210,13,212,14],[213,2,215,2],[213,3,215,6],[213,7,215,12],[213,13,215,14],[200,2,201,2],[200,3,201,6],[200,7,201,12],[200,13,201,14],[205,3,206,14],[208,3,208,14],[196,2,197,2],[196,3,197,6],[196,7,197,12],[196,13,197,14],[198,2,199,2],[198,3,199,6],[198,7,199,12],[198,13,199,14],[192,2,193,2],[192,3,192,14],[194,2,195,2],[194,3,195,6],[194,7,195,12],[194,13,195,14],[187,2,188,2],[187,3,188,6],[187,7,188,12],[187,13,188,14],[189,2,190,2],[189,3,190,6],[189,7,190,12],[189,13,190,14],[183,2,184,2],[183,3,184,6],[183,7,184,14],[185,2,186,2],[185,3,186,6],[185,7,186,14],[177,2,178,2],[177,3,178,6],[177,7,178,12],[177,13,178,14],[179,2,182,2],[179,3,182,6],[179,7,182,12],[179,13,182,14],[170,16,172,17],[173,2,174,2],[173,3,174,6],[173,7,174,12],[173,13,174,14],[175,2,176,2],[175,3,176,6],[175,7,176,12],[175,13,176,14],[143,2,145,2],[143,3,145,6],[143,7,145,14],[165,3,166,14],[168,3,168,14],[170,2,172,2],[170,3,172,6],[170,7,172,12],[170,13,172,14],[138,2,139,2],[138,3,139,6],[138,7,139,14],[140,2,142,2],[140,3,142,6],[140,7,142,14],[134,2,135,2],[134,3,135,6],[134,7,135,14],[136,2,137,2],[136,3,137,6],[136,7,137,14],[122,3,123,14],[125,3,125,14],[127,2,128,2],[127,3,128,6],[127,7,128,14],[129,2,133,2],[129,3,133,6],[129,7,133,14],[101,3,101,6],[101,7,101,14],[102,3,102,6],[102,7,102,14],[104,3,104,14],[106,3,107,14],[98,3,98,6],[98,7,98,14],[99,2,100,2],[99,3,100,6],[99,7,100,14],[91,3,94,6],[91,7,94,14],[95,3,95,6],[95,7,95,14],[96,3,96,6],[96,7,96,14],[87,2,88,2],[87,3,88,6],[87,7,88,14],[89,2,90,2],[89,3,90,6],[89,7,90,14],[42,3,42,14],[43,3,47,14],[97,3,97,6],[97,7,97,14],[82,3,83,14],[16,3,22,14],[17,16,20,17],[23,16,24,17],[24,3,24,14],[25,3,25,14],[27,3,38,14],[27,16,29,17],[85,3,85,14],[2,3,6,14],[3,16,5,17],[8,3,11,9],[8,10,11,10],[8,11,11,14],[13,3,14,14],[43,16,45,17],[49,3,61,14],[53,16,55,17]]}
[]
[]
[null,null,null,"TENDER PACK 3\nOPERATING MARGINS\n2022/23 SUPPLEMENTARY TENDER GAS DELIVERY TENDER (DEMAND REDUCTION)\nSHEET B - OPTIONAL BID (01/12/2022 - 30/04/2023)"]
[]
[]
[]
[]
[]
[null,null,null,"This tender pack is designed for:\n• Facility Providers of Demand Reduction Services\n",null,null,null,null,null,null,null,"Submission of this sheet is optional for Power Station Tenderers"]
[]
[]
[]
[]
[null,null,null,"Issued 13 September 2022"]
[]
[]
[null,null,null,"Produced by National Grid Gas Transmission  \nNational Grid Gas plc\nNational Grid House\nWarwick Technology Park\nGallows Hill\nWarwick\nCV34 6DA"]
[]
[]
[]
[]
[]
[]
[]
[null,null,null,"Website:"]
[null,null,null,"https://www.nationalgrid.com/uk/gas-transmission/balancing/operating-margins-om"]
[]
[null,null,null,"PLEASE NOTE:\nThis document should be read in conjunction with the template Operating Margins agreements (found on the Operating Margins Homepage) and the document entitled \"Tender Guidance Document 2022/23 (Supplementary Tender)\".\n\nSpecific guidance on how to complete these tender sheets is provided in Sections 7 & 8 of the Operating Margins Tender Guidance Document with specific cross-references to these tender sheets via superscript numbers adjacent to the relevant fields of information. Please also refer to Section 6 \"Requirements of the Tender Process\" in order to understand what must accompany the tender sheets as part of submission in order that assessment can proceed on any tenders received.\n\nTerms and phrases used in this document have the meanings set out or referred to in the template Operating Margins agreements and/or the Operating Margins Tender Guidance Document."]
[]
[]
[]
[]
[]
[]
[]
[]
[]
[]
[]
[null,null,null,null,null,null,null,null,null,null,null,null,null,null,null,null,"Page 1"]
[]
[]
[null,null,null,"IMPORTANT INFORMATION - PLEASE READ:"]
[null,null,null,"• All parts of 'Sheet A' must be completed by all Power Station tenderers and submitted to be eligible for assessment.\n\n• A Power Station tenderer may submit an additional proposal for a 5 month OM service in the form of 'Sheet B', with a different Maximum Delivery Rate (for example a MEL to SEL turndown). This is optional. \n\n\n**Volumes in Sheets A and B will be treated as mutually exclusive - i.e. National Grid will only consider accepting ONE of Sheet A or Sheet B.**"]
[]
[]
[]
[]
[]
[null,null,null,"Completed Tenders should be submitted by 13:00 hours (BST) on Monday 3rd October 2022 via Ariba.\n\nThe completed Tender Pack should be uploaded with a filename which includes the company name and site.\nAfter uploading the Tender Pack document, terms and conditions must be accepted before submitting.\nSubmissions can be revised until the deadline."]
[]
[]
[]
[]
[]
[]
[]
[]
[]
[]
[]
[]
[]
[]
[]
[]
[]
[]
[]
[]
[]
[]
[]
[]
[]
[]
[]
[]
[]
[null,null,null,null,null,null,null,null,null,null,null,null,null,null,null,null,"Page 2"]
[]
[]
[null,null,null,"2022/23 OM GAS DELIVERY TENDER (WINTER SUPPLEMENTARY TENDER)"]
[]
[]
[null,null,null,"Part 1: Tenderer Details"]
[]
[null,null,1,"Tenderer's Company Name\n(including company number)"]
[]
[null,null,2,"Company Representative, Job Title"]
[]
[null,null,3,"Company Representative Address\n(full address including postcode)"]
[]
[]
[]
[null,null,4,"Telephone Number"]
[null,null,5,"Facsimile Number"]
[null,null,6,"Email Address"]
[null,null,7,"Legal Agent Name"]
[null,null,8,"Legal Agent Address"]
[]
[null,null,9,"Shipper Short Code"]
[null,null,10,"Achilles Registration Number"]
[]
[null,null,null,"Part 2"]
[]
[null,null,null,"PLEASE SEE TENDER PACK 3 CONTRACT RESPONSE TAB"]
[]
[]
[]
[]
[]
[]
[]
[]
[]
[]
[]
[]
[null,null,null,null,null,null,null,null,null,null,null,null,null,null,null,null,"Page 3"]
[]
[]
[null,null,null,"2022/23 OM GAS DELIVERY TENDER (WINTER SUPPLEMENTARY TENDER)"]
[]
[]
[null,null,null,"Part 3: Facility Details"]
[]
[null,null,11,"Facility Name\n(including company number)"]
[]
[null,null,12,"Facility Location\n(full address including postcode)\n"]
[]
[]
[]
[]
[null,null,13,"Facility Stable Export Limit"]
[]
[null,null,14,"Facility Maximum Export Limit"]
[]
[null,null,15,"BM Unit IDs"]
[]
[null,null,16,"Duration of Service",null,null,null,"5 Months (01/12/2022 - 30/04/2023)",null,null,null,null,null,null,null,null,1]
[]
[]
[null,null,17,"[NOT USED]",null,null,null,"[NOT USED]"]
[]
[]
[]
[]
[]
[]
[]
[]
[]
[]
[]
[]
[]
[]
[]
[]
[]
[]
[null,null,null,null,null,null,null,null,null,null,null,null,null,null,null,null,"Page 4"]
[]
[]
[null,null,null,"2022/23 OM GAS DELIVERY TENDER (WINTER SUPPLEMENTARY TENDER)"]
[]
[]
[null,null,null,"Part 4: Deliverability & Availability"]
[]
[null,null,18,"Maximum Delivery Rate (Tendered)\n(requirement must be greater or equal to 500,000 kWh/hour)",null,null,null,null,null,null,null,null,null,"kWh/hour"]
[]
[]
[null,null,19,"[NOT USED]",null,null,null,"[NOT USED]",null,null,null,null,null,"[NOT USED]"]
[]
[null,null,20,"Minimum Delivery Rate\n(optional) (if left blank delivery deemed at 0)",null,null,null,null,null,null,null,null,null,"kWh/hour"]
[]
[null,null,21,"Response Time",null,null,null,null,null,null,null,null,null,"Minutes"]
[]
[null,null,22,"Planned Maintenance Periods",null,null,null,null,null,null,null,null,null,"Dates"]
[]
[]
[]
[null,null,23,"Website for Service Availability / Unavailability"]
[]
[null,null,24,"[NOT USED]",null,null,null,"[NOT USED]"]
[]
[null,null,25,"Maximum Delivery Duration",null,null,null,null,null,null,null,null,null,"hours",null,null,2]
[]
[null,null,26,"Minimum Delivery Duration\n(Optional) (if left blank delivery deemed at 0)",null,null,null,null,null,null,null,null,null,"hours"]
[]
[]
[]
[]
[null,null,27,"[NOT USED]",null,null,null,"[NOT USED]",null,null,null,null,null,"[NOT USED]"]
[]
[null,null,28,"[NOT USED]",null,null,null,"[NOT USED]",null,null,null,null,null,"[NOT USED]"]
[]
[null,null,29,"[NOT USED]",null,null,null,"[NOT USED]",null,null,null,null,null,"[NOT USED]"]
[]
[null,null,30,"[NOT USED]",null,null,null,"[NOT USED]",null,null,null,null,null,"[NOT USED]"]
[]
[null,null,null,null,null,null,null,null,null,null,null,null,null,null,null,null,"Page 5"]
[]
[]
[null,null,null,"2022/23 OM GAS DELIVERY TENDER (WINTER SUPPLEMENTARY TENDER)"]
[]
[]
[null,null,null,"Part 5: Charges"]
[]
[null,null,31,"Service Fee (for period 01/12/2022 - 30/04/2023)",null,null,null,null,null,null,null,null,null,"£"]
[]
[]
[null,null,32,"Indexed Delivery Charge\n",null,null,null,"Indexed Delivery Charge 2",null,null,null,null,null,"See Guidance Document"]
[]
[]
[null,null,33,"Efficiency Loss Factor ('X'%)",null,null,null,null,null,null,null,null,null,"See Guidance Document"]
[]
[]
[null,null,34,"Indexed Delivery Charge 3 required? (YES/NO)\n",null,null,null,null,null,null,null,null,null,"See Guidance Document"]
[]
[]
[null,null,35,"Additional Nomination Restrictions"]
[]
[]
[]
[]
[]
[]
[]
[]
[]
[]
[]
[]
[]
[]
[]
[]
[]
[null,null,null,null,null,null,null,null,null,null,null,null,null,null,null,null,"Page 6"]

{"sheet":"TENDER PACK 3 CONTRACT RESPONSE","index":3,"n_rows":56,"n_cols":15,"rows_kept":56,"cut":false,"hidden":false,"merged":[[26,3,38,14],[43,3,43,14],[44,3,53,14],[55,3,55,14],[56,3,79,14],[24,3,24,14],[2,3,6,14],[8,3,10,14],[12,3,13,14],[15,3,21,14],[23,3,23,14]]}
[]
[]
[null,null,null,"\nOPERATING MARGINS 2022/23 SUPPLEMENTARY TENDER\nOM TENDERERS CONTRACT RESPONSE FORM\n\n"]
[]
[]
[]
[]
[]
[null,null,null,"This sheet should be populated along with Sheet A (or Sheets A and B) from tenderers who wish to propose any amendments to the template OM Agreements or alternative terms. If no such amendments or alternative terms are proposed, submission of this form is not required. This form should be submitted at the same time as the rest of the tender submission, no later than 13:00 (BST) on Monday 3 October 2022."]
[]
[]
[]
[null,null,null,"Issued 13 September 2022"]
[]
[]
[null,null,null,"Produced by National Grid Gas Transmission\nNational Grid Gas plc\nNational Grid House\nWarwick Technology Park\nGallows Hill\nWarwick\nCV34 6DA"]
[]
[]
[]
[]
[]
[]
[]
[null,null,null,"Website:"]
[null,null,null,"https://www.nationalgrid.com/uk/gas-transmission/balancing/operating-margins-om"]
[]
[null,null,null,"PLEASE NOTE:\nThis document should be read in conjunction with the template Operating Margins agreements (found on the Operating Margins Homepage) and the document entitled \"Tender Guidance Document 2022/23 (Supplementary Tender)\".\n\nSpecific guidance on how to complete this form is provided below and in Section 6 of the Operating Margins Tender Guidance Document.\n\nTerms and phrases used in this document have the meanings set out or referred to in the template Operating Margins agreements and/or the Operating Margins Tender Guidance Document. Additional Nomination Restrictions remain part of main tender pack and should not be listed here."]
[]
[]
[]
[]
[]
[]
[]
[]
[]
[]
[]
[]
[null,null,null,null,null,null,null,null,null,null,null,null,null,null,"Page 1"]
[]
[]
[]
[null,null,null,"IMPORTANT - PLEASE NOTE:"]
[null,null,null,"National Grid is subject to its Gas Transporter Licence obligations to ensure a tenderer does not obtain any unfair commercial advantage from a preferential or discriminatory arrangement as against another tenderer. This means that National Grid cannot substantially deviate from the terms published in the template OM Agreement, therefore proposed contractual amendments should only be submitted if they are deemed reasonably necessary to reflect the type and technical characteristics of the relevant site. \n\n"]
[]
[]
[]
[]
[]
[]
[]
[]
[]
[]
[null,null,null,"PROPOSED AMENDMENTS TO TEMPLATE OM AGREEMENT / ALTERNATIVE TERMS:"]

{"sheet":"DC3B","index":4,"n_rows":4,"n_cols":41,"rows_kept":4,"cut":false,"hidden":true,"merged":[[0,2,1,9]]}
[null,null,"Data Collection Tab for Contracts Team"]
[]
["Tender Pack","Tender Ref","Tranche Ref","Main Ref",{"$f":"'TENDER PACK 3 PS (Sheet B)'!$D$88","v":"Tenderer's Company Name\n(including company number)"},{"$f":"'TENDER PACK 3 PS (Sheet B)'!$D$90","v":"Company Representative, Job Title"},{"$f":"'TENDER PACK 3 PS (Sheet B)'!$D$92","v":"Company Representative Address\n(full address including postcode)"},{"$f":"'TENDER PACK 3 PS (Sheet B)'!$D$96","v":"Telephone Number"},{"$f":"'TENDER PACK 3 PS (Sheet B)'!$D$97","v":"Facsimile Number"},{"$f":"'TENDER PACK 3 PS (Sheet B)'!$D$98","v":"Email Address"},{"$f":"'TENDER PACK 3 PS (Sheet B)'!$D$99","v":"Legal Agent Name"},{"$f":"'TENDER PACK 3 PS (Sheet B)'!$D$100","v":"Legal Agent Address"},{"$f":"'TENDER PACK 3 PS (Sheet B)'!$D$102","v":"Shipper Short Code"},{"$f":"'TENDER PACK 3 PS (Sheet B)'!$D$103","v":"Achilles Registration Number"},"Winter Only?",{"$f":"'TENDER PACK 3 PS (Sheet B)'!$D$128","v":"Facility Name\n(including company number)"},{"$f":"'TENDER PACK 3 PS (Sheet B)'!$D$130","v":"Facility Location\n(full address including postcode)\n"},{"$f":"'TENDER PACK 3 PS (Sheet B)'!$D$135","v":"Facility Stable Export Limit"},{"$f":"'TENDER PACK 3 PS (Sheet B)'!$D$137","v":"Facility Maximum Export Limit"},{"$f":"'TENDER PACK 3 PS (Sheet B)'!$D$139","v":"BM Unit IDs"},{"$f":"'TENDER PACK 3 PS (Sheet B)'!$D$141","v":"Duration of Service"},{"$f":"'TENDER PACK 3 PS (Sheet B)'!$D$144","v":"[NOT USED]"},{"$f":"'TENDER PACK 3 PS (Sheet B)'!$D$171","v":"Maximum Delivery Rate (Tendered)\n(requirement must be greater or equal to 500,000 kWh/hour)"},{"$f":"'TENDER PACK 3 PS (Sheet B)'!$D$174","v":"[NOT USED]"},{"$f":"'TENDER PACK 3 PS (Sheet B)'!$D$176","v":"Minimum Delivery Rate\n(optional) (if left blank delivery deemed at 0)"},{"$f":"'TENDER PACK 3 PS (Sheet B)'!$D$178","v":"Response Time"},{"$f":"'TENDER PACK 3 PS (Sheet B)'!$D$180","v":"Planned Maintenance Periods"},{"$f":"'TENDER PACK 3 PS (Sheet B)'!$D$184","v":"Website for Service Availability / Unavailability"},{"$f":"'TENDER PACK 3 PS (Sheet B)'!$D$186","v":"[NOT USED]"},{"$f":"'TENDER PACK 3 PS (Sheet B)'!$D$188","v":"Maximum Delivery Duration"},{"$f":"'TENDER PACK 3 PS (Sheet B)'!$D$190","v":"Minimum Delivery Duration\n(Optional) (if left blank delivery deemed at 0)"},{"$f":"'TENDER PACK 3 PS (Sheet B)'!$D$195","v":"[NOT USED]"},{"$f":"'TENDER PACK 3 PS (Sheet B)'!$D$197","v":"[NOT USED]"},{"$f":"'TENDER PACK 3 PS (Sheet B)'!$D$199","v":"[NOT USED]"},{"$f":"'TENDER PACK 3 PS (Sheet B)'!$D$201","v":"[NOT USED]"},{"$f":"'TENDER PACK 3 PS (Sheet B)'!$D$211","v":"Service Fee (for period 01/12/2022 - 30/04/2023)"},{"$f":"'TENDER PACK 3 PS (Sheet B)'!$D$214","v":"Indexed Delivery Charge\n"},{"$f":"'TENDER PACK 3 PS (Sheet B)'!$D$217","v":"Efficiency Loss Factor ('X'%)"},{"$f":"'TENDER PACK 3 PS (Sheet B)'!$D$220","v":"Indexed Delivery Charge 3 required? (YES/NO)\n"},{"$f":"'TENDER PACK 3 PS (Sheet B)'!$D$223","v":"Additional Nomination Restrictions"},{"$f":"'TENDER PACK 3 PS (Sheet B)'!#REF!","v":{"$error":"#REF!"}}]
[null,null,null,{"$f":"A4&\".\"&B4&\".\"&C4","v":".."},{"$f":"'TENDER PACK 3 PS (Sheet B)'!$H$88","v":0},{"$f":"'TENDER PACK 3 PS (Sheet B)'!$H$90","v":0},{"$f":"'TENDER PACK 3 PS (Sheet B)'!$H$92","v":0},{"$f":"'TENDER PACK 3 PS (Sheet B)'!$H$96","v":0},{"$f":"'TENDER PACK 3 PS (Sheet B)'!$H$97","v":0},{"$f":"'TENDER PACK 3 PS (Sheet B)'!$H$98","v":0},{"$f":"'TENDER PACK 3 PS (Sheet B)'!$H$99","v":0},{"$f":"'TENDER PACK 3 PS (Sheet B)'!$H$100","v":0},{"$f":"'TENDER PACK 3 PS (Sheet B)'!$H$102","v":0},{"$f":"'TENDER PACK 3 PS (Sheet B)'!$H$103","v":0},"No",{"$f":"'TENDER PACK 3 PS (Sheet B)'!$H$128","v":0},{"$f":"'TENDER PACK 3 PS (Sheet B)'!$H$130","v":0},{"$f":"'TENDER PACK 3 PS (Sheet B)'!$H$135","v":0},{"$f":"'TENDER PACK 3 PS (Sheet B)'!$H$137","v":0},{"$f":"'TENDER PACK 3 PS (Sheet B)'!$H$139","v":0},{"$f":"'TENDER PACK 3 PS (Sheet B)'!$H$141","v":"5 Months (01/12/2022 - 30/04/2023)"},{"$f":"'TENDER PACK 3 PS (Sheet B)'!$H$144","v":"[NOT USED]"},{"$f":"'TENDER PACK 3 PS (Sheet B)'!$H$171","v":0},{"$f":"'TENDER PACK 3 PS (Sheet B)'!$H$174","v":"[NOT USED]"},{"$f":"'TENDER PACK 3 PS (Sheet B)'!$H$176","v":0},{"$f":"'TENDER PACK 3 PS (Sheet B)'!$H$178","v":0},{"$f":"'TENDER PACK 3 PS (Sheet B)'!$H$180","v":0},{"$f":"'TENDER PACK 3 PS (Sheet B)'!$H$184","v":0},{"$f":"'TENDER PACK 3 PS (Sheet B)'!$H$186","v":"[NOT USED]"},{"$f":"IF('TENDER PACK 3 PS (Sheet B)'!Q188=1,\"12\",IF('TENDER PACK 3 PS (Sheet B)'!Q188=2,\"24\",\"UNCHECKED\"))","v":"24"},{"$f":"'TENDER PACK 3 PS (Sheet B)'!$H$190","v":0},{"$f":"'TENDER PACK 3 PS (Sheet B)'!$H$195","v":"[NOT USED]"},{"$f":"'TENDER PACK 3 PS (Sheet B)'!$H$197","v":"[NOT USED]"},{"$f":"'TENDER PACK 3 PS (Sheet B)'!$H$199","v":"[NOT USED]"},{"$f":"'TENDER PACK 3 PS (Sheet B)'!$H$201","v":"[NOT USED]"},{"$f":"'TENDER PACK 3 PS (Sheet B)'!$H$211","v":0},{"$f":"'TENDER PACK 3 PS (Sheet B)'!$H$214","v":"Indexed Delivery Charge 2"},{"$f":"'TENDER PACK 3 PS (Sheet B)'!$H$217","v":0},{"$f":"'TENDER PACK 3 PS (Sheet B)'!$H$220","v":0},{"$f":"'TENDER PACK 3 PS (Sheet B)'!$H$223","v":0},{"$f":"IF('TENDER PACK 3 PS (Sheet B)'!#REF!=\"\",\"N\",\"Y\")","v":{"$error":"#REF!"}}]

{"sheet":"DC3C","index":5,"n_rows":4,"n_cols":41,"rows_kept":4,"cut":false,"hidden":true,"merged":[[0,2,1,9]]}
[null,null,"Data Collection Tab for Contracts Team"]
[]
["Tender Pack","Tender Ref","Tranche Ref","Main Ref",{"$f":"#REF!","v":{"$error":"#REF!"}},{"$f":"#REF!","v":{"$error":"#REF!"}},{"$f":"#REF!","v":{"$error":"#REF!"}},{"$f":"#REF!","v":{"$error":"#REF!"}},{"$f":"#REF!","v":{"$error":"#REF!"}},{"$f":"#REF!","v":{"$error":"#REF!"}},{"$f":"#REF!","v":{"$error":"#REF!"}},{"$f":"#REF!","v":{"$error":"#REF!"}},{"$f":"#REF!","v":{"$error":"#REF!"}},{"$f":"#REF!","v":{"$error":"#REF!"}},"Winter Only?",{"$f":"#REF!","v":{"$error":"#REF!"}},{"$f":"#REF!","v":{"$error":"#REF!"}},{"$f":"#REF!","v":{"$error":"#REF!"}},{"$f":"#REF!","v":{"$error":"#REF!"}},{"$f":"#REF!","v":{"$error":"#REF!"}},{"$f":"#REF!","v":{"$error":"#REF!"}},{"$f":"#REF!","v":{"$error":"#REF!"}},{"$f":"#REF!","v":{"$error":"#REF!"}},{"$f":"#REF!","v":{"$error":"#REF!"}},{"$f":"#REF!","v":{"$error":"#REF!"}},{"$f":"#REF!","v":{"$error":"#REF!"}},{"$f":"#REF!","v":{"$error":"#REF!"}},{"$f":"#REF!","v":{"$error":"#REF!"}},{"$f":"#REF!","v":{"$error":"#REF!"}},{"$f":"#REF!","v":{"$error":"#REF!"}},{"$f":"#REF!","v":{"$error":"#REF!"}},{"$f":"#REF!","v":{"$error":"#REF!"}},{"$f":"#REF!","v":{"$error":"#REF!"}},{"$f":"#REF!","v":{"$error":"#REF!"}},{"$f":"#REF!","v":{"$error":"#REF!"}},{"$f":"#REF!","v":{"$error":"#REF!"}},{"$f":"#REF!","v":{"$error":"#REF!"}},{"$f":"#REF!","v":{"$error":"#REF!"}},{"$f":"#REF!","v":{"$error":"#REF!"}},{"$f":"#REF!","v":{"$error":"#REF!"}},{"$f":"#REF!","v":{"$error":"#REF!"}}]
[null,null,null,{"$f":"A4&\".\"&B4&\".\"&C4","v":".."},{"$f":"#REF!","v":{"$error":"#REF!"}},{"$f":"#REF!","v":{"$error":"#REF!"}},{"$f":"#REF!","v":{"$error":"#REF!"}},{"$f":"#REF!","v":{"$error":"#REF!"}},{"$f":"#REF!","v":{"$error":"#REF!"}},{"$f":"#REF!","v":{"$error":"#REF!"}},{"$f":"#REF!","v":{"$error":"#REF!"}},{"$f":"#REF!","v":{"$error":"#REF!"}},{"$f":"#REF!","v":{"$error":"#REF!"}},{"$f":"#REF!","v":{"$error":"#REF!"}},"Yes",{"$f":"#REF!","v":{"$error":"#REF!"}},{"$f":"#REF!","v":{"$error":"#REF!"}},{"$f":"#REF!","v":{"$error":"#REF!"}},{"$f":"#REF!","v":{"$error":"#REF!"}},{"$f":"#REF!","v":{"$error":"#REF!"}},{"$f":"#REF!","v":{"$error":"#REF!"}},{"$f":"#REF!","v":{"$error":"#REF!"}},{"$f":"#REF!","v":{"$error":"#REF!"}},{"$f":"#REF!","v":{"$error":"#REF!"}},{"$f":"#REF!","v":{"$error":"#REF!"}},{"$f":"#REF!","v":{"$error":"#REF!"}},{"$f":"#REF!","v":{"$error":"#REF!"}},{"$f":"#REF!","v":{"$error":"#REF!"}},{"$f":"#REF!","v":{"$error":"#REF!"}},{"$f":"IF(#REF!=1,\"12\",IF(#REF!=2,\"24\",\"UNCHECKED\"))","v":{"$error":"#REF!"}},{"$f":"#REF!","v":{"$error":"#REF!"}},{"$f":"#REF!","v":{"$error":"#REF!"}},{"$f":"#REF!","v":{"$error":"#REF!"}},{"$f":"#REF!","v":{"$error":"#REF!"}},{"$f":"#REF!","v":{"$error":"#REF!"}},{"$f":"#REF!","v":{"$error":"#REF!"}},{"$f":"#REF!","v":{"$error":"#REF!"}},{"$f":"#REF!","v":{"$error":"#REF!"}},{"$f":"#REF!","v":{"$error":"#REF!"}},{"$f":"#REF!","v":{"$error":"#REF!"}},{"$f":"IF(#REF!=\"\",\"N\",\"Y\")","v":{"$error":"#REF!"}}]